Workbook

Sheet Exemplo 1
A1: Exemplo 1
A2: Questão
A4: Aplicando $1.000 numa caderneta de poupança, quanto será o montante acumulado
A5: após dois anos, a juros de 6% por ano?
A7: Função:
A8: VF(TAXA;nper;PGTO;VP;Tipo)
A9: Neste caso não há pagamentos. PGTO toma o valor 0, e Tipo é 0 (é irrelevante)
A12: Dados exigidos para a função VF
A14: Taxa | B14: 0.06
A15: nper | B15: 2
A16: PGTO | B16: 0
A17: VP | B17: -1000
A18: VF
A19: Tipo | B19: 0 | C19: Irrelevante
A21: Resposta | C21: Formatada para Porcentagem
A23: VF | B23: =FV(B14,B15,B16,B17,B19) -> 1123.6 | C23: =GetFormula(B23) -> <--=VF(B14;B15;B16;B17;B19)

Sheet Exemplo 2
A1: Exemplo 2
A2: Questão
A4: Se $1.000 capitalizou para $2.000 em nove anos, qual foi a taxa de crescimento anual média?
A6: Função:
A8: TAXA(nper;pgto;vp;vf; tipo;estimativa)
A9: Neste caso não há pagamentos. PGTO toma o valor 0, e Tipo é 0 (é irrelevante)
A12: Dados exigidos para a função TAXA
A14: Taxa
A15: nper | B15: 9
A16: PGTO | B16: 0
A17: VP | B17: -1000
A18: VF | B18: 2000
A19: Tipo | B19: 0 | C19: Irrelevante
A21: Resposta
A23: TAXA | B23: =RATE(B15,B16,B17,B18,B19) -> 0.08005973889 | C23: =GetFormula(B23) -> <--=TAXA(B15;B16;B17;B18;B19)

Sheet Exemplo 3
A1: Exemplo 3
A2: Questão
A4: Depositando $100.000 e ganhando 4% ao ano, quanto tempo levará para
A5: tornar-me um milionário?
A7: Função:
A8: NPER(taxa; pgto; vp;vf; tipo)
A9: Neste caso não há pagamentos. PGTO toma o valor 0, e Tipo é 0 (é irrelevante)
A10: VP é negativo e VF é positivo
A12: Dados exigidos para a função NPER
A14: Taxa | B14: 0.04
A15: nper
A16: PGTO | B16: 0
A17: VP | B17: -100000
A18: VF | B18: 1000000
A19: Tipo | B19: 0 | C19: Irrelevante
A21: Resposta
A23: NPER | B23: =NPER(B14,B16,B17,B18,B19) -> 58.70839431 | C23: =GetFormula(B23) -> <--=NPER(B14;B16;B17;B18;B19)

Sheet Exemplo 4
A1: Exemplo 4
A2: Questão
A4: Se eu tenho R$125.463,45 em minha conta e se ganhei 2% de juros ao mês
A5: durante 12 meses, qual foi o depósito original?
A7: Função:
A8: VP(taxa;nper;pgto;vf;tipo)
A9: Neste caso não há pagamentos. PGTO toma o valor 0, e Tipo é 0 (é irrelevante)
A10: O argumento vf leva o sinal positivo(direito a receber) e o resultado vp é negativo.
A12: Dados exigidos para a função VP
A14: Taxa | B14: 0.02
A15: nper | B15: 12
A16: PGTO | B16: 0
A17: VP
A18: VF | B18: 125463.45
A19: Tipo | B19: 0 | C19: Irrelevante
A21: Resposta
A23: VP | B23: =PV(B14,B15,B16,B18,B19) -> -98927.07411 | C23: =GetFormula(B23) -> <--=VP(B14;B15;B16;B18;B19)

Sheet Exemplo 5
A1: Exemplo 5
A2: Questão
A4: Se eu deposito $200 por mês (começando hoje) numa conta ganhando 1,5% ao mês,
A5: quanto terei após três anos?
A7: Função:
A8: VF(taxa;nper;pgto; vp; tipo)
A9: Neste caso há pagamentos. PGTO toma o valor 200, e Tipo é 1 . O VP é tomado como 0
A12: Dados exigidos para a função VF
A14: Taxa | B14: 0.015
A15: nper | B15: 36
A16: PGTO | B16: 200
A17: VP | B17: 0
A18: VF
A19: Tipo | B19: 1
A21: Resposta
A23: VF | B23: =FV(B14,B15,B16,B17,1) -> -9597.021749 | C23: =GetFormula(B23) -> <--=VF(B14;B15;B16;B17;1)

Sheet Exemplo 6
A1: Exemplo 6
A2: Questão
A4: Tomando emprestado $2.000 por quatro anos a 5% de juros, quanto você terá de pagar de volta?
A7: Função:
A8: VF(taxa;nper;pgto; vp; tipo)
A12: Dados exigidos para a função VF
A14: Taxa | B14: 0.05
A15: nper | B15: 4
A16: PGTO | B16: 0
A17: VP | B17: 2000
A18: Tipo | B18: 1
A21: Resposta
A23: VF | B23: =FV(B14,B15,B16,B17,1) -> -2431.0125 | C23: =GetFormula(B23) -> <--=VF(B14;B15;B16;B17;1)

Sheet Exemplo 7
A1: Exemplo 7
A2: Questão
A4: Se $1.000 capitalizou para $4.000 em nove anos, qual foi a taxa de crescimento anual média?
A7: Função:
A8: TAXA(nper;pgto;vp;vf;tipo; estimativa)
A12: Dados exigidos para a função TAXA
A14: Taxa
A15: nper | B15: 9
A16: PGTO | B16: 0
A17: VP | B17: 1000
A18: VF | B18: 4000
A19: Tipo | B19: 0
A22: Resposta
A24: VF | B24: =RATE(B15,B16,-B17,B18,B19) -> 0.1665290396 | C24: =GetFormula(B24) -> <--=TAXA(B15;B16;-B17;B18;B19)

Sheet Exemplo 8
A1: Exemplo 8
A2: Questão
A4: Com um saldo inicial de R$25.500 e pagamentos de R$1.500 por mês (no final de cada mês), quanto eu acumularei durante três anos se eu ganho 0,85% por mês?
A6: Função
A8: VF(TAXA;Nper;PGTO;PV;Tipo)
A10: Dados exigidos para a função VP
A12: Taxa | B12: 0.0085
A13: Nper | B13: 36
A14: PGTO | B14: -1500
A15: VP | B15: -25500
A16: Tipo | B16: 0
A18: Resposta
A20: VF | B20: =FV(B12,B13,B14,B15,0) -> 97447.44335 | C20: =GetFormula(B20) -> <--=VF(B12;B13;B14;B15;0)

Sheet Exemplo 9
A1: Exemplo 9
A2: Questão
A4: Meu saldo bancário a cinco anos atrás era $25.000, e eu adicionei $4.500 ao término de cada ano. O saldo atual é $70.000. Qual foi o meu retorno anual médio?
A6: Função
A8: TAXA(nper; pgto; vp; vf; tipo; estimativa)
A10: Dados exigidos para a função TAXA
A12: Taxa
A13: Nper | B13: 6
A14: PGTO | B14: -2500
A15: VP | B15: -15000
A16: VF | B16: 50000
A17: Tipo | B17: 0
A18: Estimativa | B18: 0
A19: Resposta
A21: TAXA | B21: =RATE(B13,B14,B15,B16,B17,B18) -> 0.1204984011 | C21: =GetFormula(B21) -> <--=TAXA(B13;B14;B15;B16;B17;B18)

Sheet Exemplo 10
A1: Exemplo 10
A2: Questão
A4: Minha conta tinha um débito de $15.000 e eu deposito $500 no final de cada mês. Quanto tempo levará para eu me tornar um milionário se eu ganhar um retorno médio de 0.8% por mês?
A6: Função
A8: NPER(taxa, pgto, vp, vf, tipo)
A10: Dados exigidos para a função NPER
A12: Taxa | B12: 0.008
A13: Nper
A14: PGTO | B14: -500
A15: VP | B15: 15000
A16: VF | B16: 1000000
A17: Tipo | B17: 0
A18: Estimativa
A19: Resposta
A21: NPER | B21: =NPER(B12,B14,B15,B16,B17) -> 390.0080353 | C21: =GetFormula(B21) -> <--=NPER(B12;B14;B15;B16;B17)
B23: =NPER(0.9%,-500,15000,0,0)+NPER(0.6%,-500,0,1000000,0) -> 463.8977365 | C23: =GetFormula(B23) -> <--=NPER(0,9%;-500;15000;0;0)+NPER(0,6%;-500;0;1000000;0)

Sheet Exemplo 11
A1: Exemplo 11
A2: Questão
A4: Deposito $1.000 por mês (no final de cada mês) pretendo fazer isto nos próximos dez anos. Se eu preciso acumular $1.000.000, quanto deveria depositar agora se a conta recebe 0,7% ao mês?
A6: Função
A8: VP(taxa; nper; pgto;vf; tipo)
A10: Dados exigidos para a função VP
A12: Taxa | B12: 0.005
A13: Nper | B13: 120
A14: PGTO | B14: -1000
A15: VP
A16: VF | B16: 1000000
A17: Tipo | B17: 0
A18: Estimativa
A19: Resposta
A21: VP | B21: =PV(B12,B13,B14,B16,B17) -> -459559.28 | C21: =GetFormula(B21) -> <--=VP(B12;B13;B14;B16;B17)

Sheet Exemplo 12
A1: Exemplo 12
A2: Questão
A4: Qual é o valor presente do direito de receber $25.000 daqui cinco anos, descontado a 6,5% por ano?
A6: Função
A8: VP(TAXA;Nper;PGTO;VF;Tipo)
A9: Mas neste caso não há pagaamentos. PGTO toma o valor 0 e Tipo é 0 (mas irrelevante)
A10: Dados exigidos para a função VP
A12: Taxa | B12: 0.065
A13: Nper | B13: 5
A14: PGTO | B14: 0
A15: VF | B15: -25000
A16: Tipo | B16: 0
A18: Resposta
A20: VP | B20: =PV(B12,B13,B14,B15,0) -> 18247.02091 | C20: =GetFormula(B20) -> <--=VP(B12;B13;B14;B15;0)

Sheet Exemplo 13

Sheet Exemplo 14

Sheet Exemplo 15

Sheet Exemplo 16

Sheet Exemplo 17

Sheet Exemplo 18

Sheet Exemplo 19

Sheet Exemplo 20
A1: Exemplo 20
A2: Questão
A4: Quais são os pagamentos sobre um empréstimo de R$4.000.000 durante 20 anos, a 0,75% de juros ao mês (com pagamentos postecipados)?
A6: Função
A8: PGTO(TAXA;Nper;VP;VF;Tipo)
A10: Dados exigidos para a função VP
A12: Taxa | B12: 0.0075
A13: Nper | B13: 240
A14: VP | B14: 4000000
A15: Tipo | B15: 0
A17: Resposta
A19: PGTO | B19: =PMT(B12,B13,B14,0,0) -> -35989.03823 | C19: =GetFormula(B19) -> <--=PGTO(B12;B13;B14;0;0)

Sheet Exemplo 21

Sheet Exemplo 22

Sheet Exemplo 23

Sheet Exemplo 24

Sheet Exemplo 25

Sheet Exemplo 26
A1: Custo Efetivo de Empréstimo de Hipoteca
A3: Um banco cota uma hipoteca taxa de 3% nominal composta mensalmente, e você está interessado em tomar um empréstimo de R$300.000 durante 20 anos com pagamentos mensais. O banco cobra de antemão ao acordo do empréstimo uma taxa de 1% do empréstimo, mais uma taxa de serviço da conta de R$15 por mês. Qual é o custo efetivo anual do empréstimo?
A6: Dados Base
A7: Empréstimo | B7: 300000
A8: Taxa Nominal | B8: 0.03
A9: Freqüência de Composição | B9: 12
A10: Prazo em Anos | B10: 20
A11: Set up fee % do empréstimo | B11: 0.01
A12: Taxa de Serviço da Conta | B12: 15
A15: Cálculos
A16: Set up fee | B16: =B7*B11 -> 3000 | C16: =GetFormula(B16) -> <--=B7*B11
A17: Empréstimo efetivo | B17: =B7-B16 -> 297000 | C17: =GetFormula(B17) -> <--=B7-B16
A18: Períodos do empréstimos | B18: =B10*B9 -> 240 | C18: =GetFormula(B18) -> <--=B10*B9
A19: Taxa por período do empréstimo | B19: =EFFECT(B8/12,B9) -> 0.002502866574 | C19: =GetFormula(B19) -> <--=EFETIVA(B8/12;B9) | E19: Verificação
A20: Pagamento do empréstimo | B20: =PMT(B19,B18,B7,0,0) -> -1664.309439 | C20: <--=PGTO(B19;B18;B7;0;0)
A21: Pagamento do empréstimo + taxa da conta | B21: =B20-B12 -> -1679.309439 | C21: <--=B20-B12
A22: Custo efetivo do empréstimo - por mês | B22: =RATE(B18,B21,B17,0,0) -> 0.002679200263 | C22: <--=TAXA(B18;B21;B17;0;0)
A23: Custo efetivo do empréstimo - anual | B23: =(1+B22)^12-1 -> 0.03262841525 | C23: <--=(1+B22)^12-1

Sheet Exemplo 27
B18: =EFFECT(RATE(18,-17250/18,15000,0,1),12) -> 0.01717132491
B19: =RATE(18,-17250/18,15000,0,1) -> 0.01703764757

Sheet Exemplo 28

Sheet Exemplo 29

Sheet Exemplo 30
A1: Uso das Funções IPGTO e PPGTO
A3: Dados do Usuário
A4: Quantia Emprestada | B4: 20000
A5: Prazo do Empréstimo em Anos | B5: 3
A6: Pagamentos por Ano | B6: 12
A7: Taxa de Empréstimo Anual (nominal) composta 12 vezes por ano | B7: 0.08
A8: Quantia Balloon | B8: 0
A9: Tipo de Pagamento | B9: 0
A11: Cálculos
A12: Período de Empréstimo para juros/principal - per | B12: 36
A13: Juros por Período | B13: 0.006667
A14: Pagamento do Empréstimo | B14: =PMT(B7/12,B15,B4,0,0) -> -626.7273092 | C14: =GetFormula(B14) -> <--=PGTO(B7/12;B15;B4;0;0)
A15: Período Total do Empréstimo - nper | B15: 36
A17: Pagamento dos juros | B17: =IPMT(B7/12,B12,B15,B4,0,0) -> -4.150511982 | C17: =GetFormula(B17) -> <--=IPGTO(B7/12;B12;B15;B4;0;0)
A18: Pagamento do principal | B18: =PPMT(B7/12,B12,B15,B4,0,0) -> -622.5767972 | C18: =GetFormula(B18) -> <--=PPGTO(B7/12;B12;B15;B4;0;0)
A20: Verificação total | B20: =B17+B18 -> -626.7273092 | C20: =GetFormula(B20) -> <--=B17+B18

Sheet Exemplo 31

Sheet Exemplo 32

Sheet Plan12

Sheet Plan13

Sheet Plan14

Sheet Plan15
